Workbook

Sheet Overview
C2: SITE OVERVIEW
B5: Name | C5: CR 44 leesburg STORAGE
B7: Address | C7: 9915 County RD 44
C8: Leesburg, FL 34788
B12: Total Building Area | C12: Sq ft | D12: 101380 | E12: incl Cov parking
B14: Site acreage | D14: 6.25
B16: Net Rentable Area | C16: Sq ft | D16: ='Unit Mix'!H47 -> 86175
D18: Sq ft | E18: % of Total
B19: CC Units | C19: ='Unit Mix'!B41 -> 646 | D19: ='Unit Mix'!H41 -> 82075 | E19: =D19/D16 -> 0.9524223963
D21: Sq ft | E21: % of Total
B22: Non CC Units | C22: ='Unit Mix'!B21 -> 21 | D22: ='Unit Mix'!H21 -> 4100 | E22: =D22/D16 -> 0.04757760371
B24: Parking | C24: ='Unit Mix'!B60 -> 0
B26: Jurisdiction | D26: Marion County
B27: Zoning | D27: RAC/Special Use Permit - Storage approved
C29: PROFORMA
B32: Gross Potential Inc | D32: ='Unit Mix'!J71 -> 1581057.482
B33: Less Vacancy/Coll | D33: =Operations!E17 -> 331367.2973
B35: Projected Income | D35: =Operations!E18 -> 1249690.185
B37: Projected Expenses | D37: =Operations!E34 -> 255495.0841
B39: Net Operating Inc | D39: =Operations!E37 -> 994195.101
C42: VALUES
B44: Cap Rate Values | C44: 0.06 | D44: =D39/C44 -> 16569918.35
B45: @ Projected NOI | C45: 0.055 | D45: =D39/C45 -> 18076274.56
C46: 0.05 | D46: =D39/C46 -> 19883902.02
B49: Land Cost | D49: ='Development Cost'!I6+'Development Cost'!I7 -> 1890000
B50: Development Cost | D50: ='Development Cost'!I71 -> 9557151.66
C51: Total | D51: ='Development Cost'!I70 -> 11447151.66
B53: Cost to Value | C53: @ 5.5 Cap | D53: =D51/D45 -> 0.6332694062

Sheet Unit Mix
F2: UNIT MIX – TOTAL REVENUES
B4: NON CLIMATE
B5: UNITS | C5: SIZE | D5: RSF | E5: RATE | F5: MONTHLY RENT / SF | G5: ANNUAL RENT / SF | H5: TOTAL SF | I5: MONTHLY GROSS POTENTIAL RENT | J5: ANNUAL GROSS POTENTIAL RENT
B7: 0 | C7: 5 x 5 | D7: 25 | E7: 45 | F7: =E7/D7 -> 1.8 | G7: =F7*12 -> 21.6 | H7: =B7*D7 -> 0 | I7: =B7*E7 -> 0 | J7: =I7*12 -> 0
B8: 0 | C8: 5 x10 | D8: 50 | E8: 55 | F8: 1.1 | G8: 13.2 | H8: 0 | I8: 0 | J8: 0
B9: 0 | C9: 7.5 x 10 | D9: 75 | E9: 70 | F9: 0.9333333333 | G9: 11.2 | H9: 0 | I9: 0 | J9: 0
B10: 0 | C10: 10 x 10 | D10: 100 | E10: 95 | F10: 0.95 | G10: 11.4 | H10: 0 | I10: 0 | J10: 0
B11: 0 | C11: 7.5 x 15 | D11: 112.5 | E11: 100 | F11: 0.8888888889 | G11: 10.66666667 | H11: 0 | I11: 0 | J11: 0
B12: 10 | C12: 10 x 15 | D12: 150 | E12: 110 | F12: 0.7333333333 | G12: 8.8 | H12: 1500 | I12: 1100 | J12: 13200
B13: 3 | C13: 10 x 20 | D13: 200 | E13: 150 | F13: 0.75 | G13: 9 | H13: 600 | I13: 450 | J13: 5400
B14: 8 | C14: 10 x 25 | D14: 250 | E14: 185 | F14: 0.74 | G14: 8.88 | H14: 2000 | I14: 1480 | J14: 17760
B15: 0 | C15: 10 x 30 | D15: 300 | E15: 255 | F15: 0.85 | G15: 10.2 | H15: 0 | I15: 0 | J15: 0
B16: 0 | C16: 10 x 35 | D16: 350 | E16: 275 | F16: 0.7857142857 | G16: 9.428571429 | H16: 0 | I16: 0 | J16: 0
B17: 0 | C17: 10 x 40 | D17: 400 | E17: 300 | F17: 0.75 | G17: 9 | H17: 0 | I17: 0 | J17: 0
B19: TOTAL NON CLIMATE
B21: =SUM(B7:B17) -> 21 | F21: =G21/12 -> 0.7390243902 | G21: =J21/H21 -> 8.868292683 | H21: =SUM(H7:H17) -> 4100 | I21: 3030 | J21: 36360
B23: CLIMATE CONTROLLED
B24: UNITS | C24: SIZE | D24: RSF | E24: RATE | F24: RENT / SF | G24: ANNUAL RENT / SF | H24: TOTAL SF | I24: MONTHLY GROSS POTENTIAL RENT | J24: ANNUAL GROSS POTENTIAL RENT
B26: 60 | C26: 5 x 5 | D26: 25 | E26: 108.66 | F26: =E26/D26 -> 4.3464 | G26: =F26*12 -> 52.1568 | H26: =B26*D26 -> 1500 | I26: =B26*E26 -> 6519.6 | J26: =I26*12 -> 78235.2
B27: 93 | C27: 5 x10 | D27: 50 | E27: 111.13 | F27: 2.2226 | G27: 26.6712 | H27: 4650 | I27: 10335.09 | J27: 124021.08
B28: 43 | C28: 7.5 x 10 | D28: 75 | E28: 85 | F28: 1.133333333 | G28: 13.6 | H28: 3225 | I28: 3655 | J28: 43860
B29: 157 | C29: 10 x 10 | D29: 100 | E29: 187.01 | F29: 1.8701 | G29: 22.4412 | H29: 15700 | I29: 29360.57 | J29: 352326.84
B30: 40 | C30: 7.5 x 15 | D30: 112.5 | E30: 120 | F30: 1.066666667 | G30: 12.8 | H30: 4500 | I30: 4800 | J30: 57600
B31: 104 | C31: 10 x 15 | D31: 150 | E31: 241.52 | F31: 1.610133333 | G31: 19.3216 | H31: 15600 | I31: 25118.08 | J31: 301416.96
B32: 60 | C32: 10 x 20 | D32: 200 | E32: 384.4 | F32: 1.922 | G32: 23.064 | H32: 12000 | I32: 23064 | J32: 276768
B33: 26 | C33: 15 x 15 | D33: 225 | E33: 215 | F33: 0.9555555556 | G33: 11.46666667 | H33: 5850 | I33: 5590 | J33: 67080
B34: 14 | C34: 10 x 25 | D34: 250 | E34: 250 | F34: 1 | G34: 12 | H34: 3500 | I34: 3500 | J34: 42000
B35: 39 | C35: 10 x 30 | D35: 300 | E35: 209 | F35: 0.6966666667 | G35: 8.36 | H35: 11700 | I35: 8151 | J35: 97812
B36: 3 | C36: 10 x 35 | D36: 350 | E36: 300 | F36: 0.8571428571 | G36: 10.28571429 | H36: 1050 | I36: 900 | J36: 10800
B37: 7 | C37: 10 x 40 | D37: 400 | E37: 325 | F37: 0.8125 | G37: 9.75 | H37: 2800 | I37: 2275 | J37: 27300
B39: TOTAL CLIMATE
B41: =SUM(B26:B37) -> 646 | F41: =G41/12 -> 1.501898751 | G41: =J41/H41 -> 18.02278501 | H41: =SUM(H26:H37) -> 82075 | I41: 123268.34 | J41: 1479220.08
B43: TOTAL STORAGE
B45: UNITS | C45: SIZE | D45: RSF | E45: RATE | F45: MONTHLY RENT / SF | G45: ANNUAL RENT / SF | H45: TOTAL SF | I45: MONTHLY GROSS POTENTIAL RENT | J45: ANNUAL GROSS POTENTIAL RENT
B47: =B41+B21 -> 667 | F47: =G47/12 -> 1.465603017 | G47: =J47/H47 -> 17.58723621 | H47: =H41+H21 -> 86175 | I47: 126298.34 | J47: 1515580.08
B49: PARKING
B50: Open
B51: 0 | C51: 10 x 30 | D51: 300 | E51: 75 | F51: =E51/D51 -> 0.25 | G51: =F51*12 -> 3 | H51: =B51*D51 -> 0 | I51: =B51*E51 -> 0 | J51: =I51*12 -> 0
B52: 0 | C52: 10 x 40 | D52: 400 | E52: 110 | F52: 0.275 | G52: 3.3 | H52: 0 | I52: 0 | J52: 0
B53: Covered
B54: 0 | C54: 12 x 25 | D54: 300 | E54: 185 | F54: =E54/D54 -> 0.6166666667 | G54: =F54*12 -> 7.4 | H54: =B54*D54 -> 0 | I54: =B54*E54 -> 0 | J54: =I54*12 -> 0
B55: 0 | C55: 12 x 60 | D55: 720 | E55: 275 | F55: 0.3819444444 | G55: 4.583333333 | H55: 0 | I55: 0 | J55: 0
B58: TOTAL PARKING
B60: =SUM(B51:B55) -> 0 | F60: =G60/12 -> #DIV/0! | G60: =J60/H60 -> #DIV/0! | H60: =SUM(H51:H55) -> 0 | I60: 0 | J60: 0
B62: TOTAL RENTAL INCOME
B64: UNITS | C64: SIZE | D64: RSF | E64: RATE | F64: MONTHLY RENT / SF | G64: ANNUAL RENT / SF | H64: TOTAL SF | I64: MONTHLY GROSS POTENTIAL RENT | J64: ANNUAL GROSS POTENTIAL RENT
B66: =B60+B41+B21 -> 667 | F66: =G66/12 -> 1.465603017 | G66: =J66/H66 -> 17.58723621 | H66: =H60+H41+H21 -> 86175 | I66: 126298.34 | J66: 1515580.08
B68: MISC FEES & RETAIL | E68: 0.03 | I68: =I66*E68 -> 3788.9502 | J68: =I68*12 -> 45467.4024
B69: TENANT PROT/INS | D69: =B47*0.5 -> 333.5 | E69: 5 | I69: =E69*D69 -> 1667.5 | J69: 20010
B71: GROSS POTENTIAL INCOME | I71: =SUM(I66:I69) -> 131754.7902 | J71: =I71*12 -> 1581057.482
B72: VACANCY | E72: 0.2 | I72: =I71*E72 -> 26350.95804 | J72: 316211.4965
C74: PROJECTED INCOME | I74: =I71-I72 -> 105403.8322 | J74: =I74*12 -> 1264845.986

Sheet Operations
C2: PROJECTED NET INCOME
D4: Monthly | E4: Annual
B6: Gross Potential Rent | D6: =E6/12 -> 126298.34 | E6: ='Unit Mix'!J66 -> 1515580.08
B7: Fee & Retail Income | D7: 3788.9502 | E7: ='Unit Mix'!J68 -> 45467.4024
B8: Tenant Prot | D8: 1667.5 | E8: ='Unit Mix'!J69 -> 20010
B9: Gross Potential Income | D9: 131754.7902 | E9: ='Unit Mix'!J71 -> 1581057.482
B11: Vacancy | E11: ='Unit Mix'!E72 -> 0.2
B12: Bad Debt | E12: 0.005
B13: Rent Concessions | E13: 0.005
B14: Vacancy | D14: =E14/12 -> 26350.95804 | E14: ='Unit Mix'!J72 -> 316211.4965
B15: Bad Debt | D15: 631.4917 | E15: =E6*E12 -> 7577.9004
B16: Rent Concessions | D16: 631.4917 | E16: =E6*E13 -> 7577.9004
B17: Total Vacancy/DB/RC | D17: 27613.94144 | E17: =SUM(E14:E16) -> 331367.2973
B18: Effective Gross Income | D18: 104140.8488 | E18: =E9-E17 -> 1249690.185
B21: On-Site Payroll | D21: =E21/12 -> 2916.666667 | E21: 35000
B22: Repairs & Maintenance | D22: 1250 | E22: 15000
B23: General & Administrative | D23: 666.6666667 | E23: 8000
B24: Advertising & Promotion | D24: 1000 | E24: 12000
B25: Bank Charges | D25: 1000 | E25: 12000
B26: Professional Fees | D26: 416.6666667 | E26: 5000
B27: Telephone/Internet | D27: 266.6666667 | E27: 3200
B28: Property Association Fees | D28: 0 | E28: 0
B29: Management Fee | D29: =E29/12 -> 5207.042438 | E29: =0.05*E18 -> 62484.50926
B30: Real Estate Taxes | D30: 3333.333333 | E30: 40000
B31: Depreciation Reserves | D31: 1317.547902 | E31: =E9*0.01 -> 15810.57482
B32: Utilities | D32: 2083.333333 | E32: 25000
B33: Insurance | D33: 1833.333333 | E33: 22000
B34: Total Operating Expenses | D34: 21291.25701 | E34: =SUM(E21:E33) -> 255495.0841
B35: Expense Ratio | E35: =E34/E18 -> 0.2044467398
B37: NOI | E37: =E18-E34 -> 994195.101
B39: Cap Rate Value | C39: 0.06 | E39: =E37/C39 -> 16569918.35

Sheet Development Cost
D2: DEVELOPMENT ESTIMATED VALUES
F4: Unit | G4: Value | I4: Total
B6: LAND EXPENSE | D6: Ac | F6: 6.25 | G6: =I6/F6 -> 288000 | I6: 1800000 | K6: Land/ Closing
D7: Closing | F7: 0.05 | I7: =I6*F7 -> 90000 | K7: =SUM(I6+I7) -> 1890000
B9: SOFT COSTS | D9: Arch/Engineering | I9: 179000
D10: Permits / Fees | I10: 186000
D11: Surveys | I11: 45000
D12: Utility Fees | I12: 60000
D13: Due Diligence | I13: 0
D14: Legal Fees | I14: 50000
D15: Appraisal | I15: 6000
D16: Builder Risk Insurance | I16: 100000
D17: Working Capital | I17: 50000
D18: Real Estate Taxes/ Escrow Caplitized | I18: 30000
D19: Constrution Draw inspection Fees | I19: 6000 | K19: Soft Cost
D20: Contingency - Soft Cost | I20: 100000 | K20: =SUM(I9:I20) -> 812000
B23: SITE WORK | D23: Silt Fence & Prep | I23: 30000
D24: Clearing and Fill | I24: 500000
D25: Ponds/Drainage | I25: 250000
D26: Utilities | I26: 450000
D27: Roads/Drives | F27: 70380 | G27: 4 | I27: =SUM(F27*G27) -> 281520
D28: Landscaping/Irrigation/Fencing | I28: 235000 | K28: Site Cost
D29: Well/ Septic | I29: 45000 | K29: =SUM(I23:I29) -> 1791520
B33: BUILDING COSTS | D33: Underground rough in | F33: 101380 | G33: 1.53 | I33: =SUM(F33*G33) -> 155111.4
D34: Slabs/ Foundations | F34: 101380 | G34: 9.5 | I34: =G34*F34 -> 963110 | K34: Building Cost | L34: =SUM(K35/N34) -> 59.45723614 | N34: 101380
D35: Steel | F35: 101380 | G35: 12.36 | I35: 1253056.8 | K35: =SUM(I33:I56) -> 6027774.6
D36: Steel Erection | F36: 101380 | G36: 6.5 | I36: 658970
D37: Screws and hardware | F37: 101380 | G37: 1.67 | I37: =SUM(F37*G37) -> 169304.6
D38: Walk Doors and hardware | F38: 101380 | G38: 0.8 | I38: 81104
D39: Janus Roll-up doors | F39: 101380 | G39: 3.66 | I39: 371050.8
D40: Roof | F40: 101380 | G40: 4 | I40: =G40*F40 -> 405520
D41: Spray Foam insualtion | F41: 101380 | G41: 0.33 | I41: =SUM(F41*G41) -> 33455.4
D42: Batt Insulation | F42: 101380 | G42: 1.81 | I42: 183497.8
D43: Fire Walls | F43: 101380 | G43: 1.42 | I43: 143959.6
D44: Electrical | F44: 101380 | G44: 4.2 | I44: 425796
D45: HVAC | F45: 101380 | G45: 4.64 | I45: 470403.2
D46: Plumbing | G46: 0 | I46: 32000
D47: Office Trim | I47: 2500
D48: Hardie Board | I48: 35000
D49: Paint | F49: 101380 | G49: 0.65 | I49: =SUM(F49*G49) -> 65897
D50: Flooring | I50: 25000
D51: Split Jamb Doors | I51: 3500
D52: Storefront | I52: 17500
D53: Non-rated Drywall | I53: 15000
D54: Cleaning | F54: 101380 | G54: 0.45 | I54: =SUM(F54*G54) -> 45621
D55: General conditions/ Fee | F55: 101380 | G55: 3.15 | I55: 319347
D56: Contingency | F56: 101380 | G56: 1.5 | I56: 152070
B59: OFFICE / SIGNAGE | D59: Office- Complete | I59: 150000 | K59: Office/ Signage
D60: Sign and permitting | I60: 30000 | K60: =SUM(I59:I62) -> 195000
D61: Supplies/Setup | I61: 10000
D62: Contingency | I62: 5000
B64: CARRY / INTEREST
D65: Int Cost | I65: 476172.06
D66: Contingency | I66: 250000
H68: round | I68: 4685
G70: TOTAL | I70: =SUM(I6:I68) -> 11447151.66
G71: less Land | I71: =I70-I6-I7 -> 9557151.66

Sheet 10 Yr Projections
D7: Year 1 | E7: Year 2 | F7: Year 3 | G7: Year 4 | H7: Year 5 | I7: Year 6 | J7: Year 7 | K7: Year 8 | L7: Year 9 | M7: Year 10
B9: Rent Growth | D9: 0 | E9: 0 | F9: 0.015 | G9: 0.015 | H9: 0.02 | I9: 0.02 | J9: 0.02 | K9: 0.02 | L9: 0.02 | M9: 0.02
B10: Gross Potential Rent | D10: =Operations!E6 -> 1515580.08 | E10: =D10 -> 1515580.08 | F10: =(E10*F9)+E10 -> 1538313.781 | G10: 1561388.488 | H10: 1592616.258 | I10: 1624468.583 | J10: 1656957.954 | K10: 1690097.114 | L10: 1723899.056 | M10: 1758377.037
B11: Fee & Retail Income | D11: =Operations!E7 -> 45467.4024 | E11: =E10*0.03 -> 45467.4024 | F11: 46149.41344 | G11: 46841.65464 | H11: 47778.48773 | I11: 48734.05748 | J11: 49708.73863 | K11: 50702.91341 | L11: 51716.97168 | M11: 52751.31111
B12: Tenant Prot | D12: =Operations!E8 -> 20010 | E12: =D12 -> 20010 | F12: =E12*F9+E12 -> 20310.15 | G12: 20614.80225 | H12: 21027.0983 | I12: 21447.64026 | J12: 21876.59307 | K12: 22314.12493 | L12: 22760.40743 | M12: 23215.61557
B13: Gross Potential Income | D13: =Operations!E9 -> 1581057.482 | E13: 1581057.482 | F13: =SUM(F10:F12) -> 1604773.345 | G13: 1628844.945 | H13: 1661421.844 | I13: 1694650.281 | J13: 1728543.286 | K13: 1763114.152 | L13: 1798376.435 | M13: 1834343.964
B15: Vacancy Rate | D15: 0.7 | E15: 0.5 | F15: 0.3 | G15: 0.15 | H15: 0.1 | I15: 0.1 | J15: 0.1 | K15: 0.1 | L15: 0.1 | M15: 0.1
B16: Vacancy | D16: =D10*D15 -> 1060906.056 | E16: 757790.04 | F16: 461494.1344 | G16: 234208.2732 | H16: 159261.6258 | I16: 162446.8583 | J16: 165695.7954 | K16: 169009.7114 | L16: 172389.9056 | M16: 175837.7037
B17: Bad Debt | C17: 0.005 | D17: =Operations!E15 -> 7577.9004 | E17: =$C17*E10 -> 7577.9004 | F17: 7691.568906 | G17: 7806.94244 | H17: 7963.081288 | I17: 8122.342914 | J17: 8284.789772 | K17: 8450.485568 | L17: 8619.495279 | M17: 8791.885185
B18: Rent Concessions | C18: 0.005 | D18: =Operations!E16 -> 7577.9004 | E18: =$C18*E10 -> 7577.9004 | F18: 7691.568906 | G18: 7806.94244 | H18: 7963.081288 | I18: 8122.342914 | J18: 8284.789772 | K18: 8450.485568 | L18: 8619.495279 | M18: 8791.885185
B19: Total Vacancy/DB/RC | D19: =SUM(D16:D18) -> 1076061.857 | E19: 772945.8408 | F19: 476877.2722 | G19: 249822.1581 | H19: 175187.7883 | I19: 178691.5441 | J19: 182265.375 | K19: 185910.6825 | L19: 189628.8961 | M19: 193421.4741
B20: Effective Gross Income | D20: =D13-D19 -> 504995.6256 | E20: 808111.6416 | F20: 1127896.072 | G20: 1379022.787 | H20: 1486234.055 | I20: 1515958.736 | J20: 1546277.911 | K20: 1577203.469 | L20: 1608747.539 | M20: 1640922.49
B22: Expense Growth | D22: =Operations!E20 ->  | E22: 0.02 | F22: 0.02 | G22: 0.02 | H22: 0.02 | I22: 0.02 | J22: 0.02 | K22: 0.02 | L22: 0.02 | M22: 0.02
B23: On-Site Payroll | D23: =Operations!E21 -> 35000 | E23: =$E22*D23+D23 -> 35700 | F23: 36414 | G23: 37142.28 | H23: 37885.1256 | I23: 38642.82811 | J23: 39415.68467 | K23: 40203.99837 | L23: 41008.07834 | M23: 41828.2399
B24: Repairs & Maintenance | D24: =Operations!E22 -> 15000 | E24: =$E22*D24+D24 -> 15300 | F24: 15606 | G24: 15918.12 | H24: 16236.4824 | I24: 16561.21205 | J24: 16892.43629 | K24: 17230.28501 | L24: 17574.89072 | M24: 17926.38853
B25: General & Administrative | D25: =Operations!E23 -> 8000 | E25: =$E22*D25+D25 -> 8160 | F25: 8323.2 | G25: 8489.664 | H25: 8659.45728 | I25: 8832.646426 | J25: 9009.299354 | K25: 9189.485341 | L25: 9373.275048 | M25: 9560.740549
B26: Advertising & Promotion | D26: =Operations!E24 -> 12000 | E26: =$E22*D26+D26 -> 12240 | F26: 12484.8 | G26: 12734.496 | H26: 12989.18592 | I26: 13248.96964 | J26: 13513.94903 | K26: 13784.22801 | L26: 14059.91257 | M26: 14341.11082
B27: Bank Charges | D27: =Operations!E25 -> 12000 | E27: =$E22*D27+D27 -> 12240 | F27: 12484.8 | G27: 12734.496 | H27: 12989.18592 | I27: 13248.96964 | J27: 13513.94903 | K27: 13784.22801 | L27: 14059.91257 | M27: 14341.11082
B28: Professional Fees | D28: =Operations!E26 -> 5000 | E28: =$E22*D28+D28 -> 5100 | F28: 5202 | G28: 5306.04 | H28: 5412.1608 | I28: 5520.404016 | J28: 5630.812096 | K28: 5743.428338 | L28: 5858.296905 | M28: 5975.462843
B29: Telephone/Internet | D29: =Operations!E27 -> 3200 | E29: =$E22*D29+D29 -> 3264 | F29: 3329.28 | G29: 3395.8656 | H29: 3463.782912 | I29: 3533.05857 | J29: 3603.719742 | K29: 3675.794136 | L29: 3749.310019 | M29: 3824.29622
B30: Property Association Fees | D30: =Operations!E28 -> 0 | E30: =$E22*D30+D30 -> 0 | F30: 0 | G30: 0 | H30: 0 | I30: 0 | J30: 0 | K30: 0 | L30: 0 | M30: 0
B31: Management Fee | D31: =Operations!E29 -> 62484.50926 | E31: =$E22*D31+D31 -> 63734.19944 | F31: 65008.88343 | G31: 66309.0611 | H31: 67635.24232 | I31: 68987.94717 | J31: 70367.70611 | K31: 71775.06023 | L31: 73210.56144 | M31: 74674.77267
B32: Real Estate Taxes | D32: =Operations!E30 -> 40000 | E32: =$E22*D32+D32 -> 40800 | F32: 41616 | G32: 42448.32 | H32: 43297.2864 | I32: 44163.23213 | J32: 45046.49677 | K32: 45947.42671 | L32: 46866.37524 | M32: 47803.70274
B33: Depreciation Reserves | D33: =Operations!E31 -> 15810.57482 | E33: =$E22*D33+D33 -> 16126.78632 | F33: 16449.32205 | G33: 16778.30849 | H33: 17113.87466 | I33: 17456.15215 | J33: 17805.27519 | K33: 18161.3807 | L33: 18524.60831 | M33: 18895.10048
B34: Utilities | D34: =Operations!E32 -> 25000 | E34: =$E22*D34+D34 -> 25500 | F34: 26010 | G34: 26530.2 | H34: 27060.804 | I34: 27602.02008 | J34: 28154.06048 | K34: 28717.14169 | L34: 29291.48453 | M34: 29877.31422
B35: Insurance | D35: =Operations!E33 -> 22000 | E35: =$E22*D35+D35 -> 22440 | F35: 22888.8 | G35: 23346.576 | H35: 23813.50752 | I35: 24289.77767 | J35: 24775.57322 | K35: 25271.08469 | L35: 25776.50638 | M35: 26292.03651
B36: Total Operating Expenses | D36: =Operations!E34 -> 255495.0841 | E36: =SUM(E23:E35) -> 260604.9858 | F36: 265817.0855 | G36: =SUM(G23:G34) -> 247786.8512 | H36: 252742.5882 | I36: 257797.44 | J36: 262953.3888 | K36: 268212.4565 | L36: 273576.7057 | M36: 279048.2398
B37: Expense Ratio | D37: =D36/D20 -> 0.5059352421 | E37: 0.3224863649 | F37: 0.2356751583 | G37: 0.1796829273 | H37: 0.1700557105 | I37: 0.1700557105 | J37: 0.1700557105 | K37: 0.1700557105 | L37: 0.1700557105 | M37: 0.1700557105
B39: NOI | D39: =D20-D36 -> 249500.5415 | E39: 547506.6558 | F39: 862078.987 | G39: 1131235.936 | H39: 1233491.467 | I39: 1258161.296 | J39: 1283324.522 | K39: 1308991.013 | L39: 1335170.833 | M39: 1361874.25
B41: Cap Rate Value | C41: =Operations!C39 -> 0.06 | D41: =D39/$C41 -> 4158342.359 | E41: 9125110.931 | F41: 14367983.12 | G41: 18853932.26 | H41: 20558191.12 | I41: 20969354.94 | J41: 21388742.04 | K41: 21816516.88 | L41: 22252847.22 | M41: 22697904.16
D46: =D7 -> Year 1 | E46: Year 2 | F46: Year 3 | G46: Year 4 | H46: Year 5 | I46: Year 6 | J46: Year 7 | K46: Year 8 | L46: Year 9 | M46: Year 10
B48: Projected NOI | D48: =D39 -> 249500.5415 | E48: 547506.6558 | F48: 862078.987 | G48: 1131235.936 | H48: 1233491.467 | I48: 1258161.296 | J48: 1283324.522 | K48: 1308991.013 | L48: 1335170.833 | M48: 1361874.25
B49: Debt Service | D49: =$D63 -> 558048.6434 | E49: 558048.6434 | F49: 558048.6434 | G49: =$D64 -> 695627.89 | H49: 695627.89 | I49: 695627.89 | J49: 695627.89 | K49: 695627.89 | L49: 695627.89 | M49: 695627.89
B51: Cash Flow (NOI - DS) | D51: =D48-D49 -> -308548.1019 | E51: -10541.98759 | F51: 304030.3436 | G51: 435608.0455 | H51: 537863.5771 | I51: 562533.4065 | J51: 587696.6324 | K51: 613363.1229 | L51: 639542.9431 | M51: 666246.3598
B53: Cash on Cash Return from cash flow | D53: =D51/$D60 -> -0.1078165507 | E53: -0.003683706794 | F53: 0.1062379018 | G53: 0.1522153488 | H53: 0.1879466939 | I53: 0.1965671193 | J53: 0.2053599532 | K53: 0.2143286439 | L53: 0.2234767083 | M53: 0.232807734
B56: Total Return on Sale @ Cap Rate | C56: =C41 -> 0.06 | D56: =D41+D51-$D59 -> -7597357.403 | E56: =E41+SUM(D51:E51)-$D59 -> -2641130.819 | F56: =F41+SUM($D51:F51)-$D59 -> 2905771.711 | G56: 7827328.899 | H56: 10069451.34 | I56: 11043148.56 | J56: 12050232.3 | K56: 13091370.26 | L56: 14167243.54 | M56: 15278546.84
B59: Total Project Cost | D59: ='Development Cost'!I70 -> 11447151.66 | F59: Mortgage amount | H59: =D61 -> 8585363.745
B60: Equity @ 25% | D60: =D59*0.25 -> 2861787.915 | F60: Interest rate | H60: 0.065
B61: Construction Loan | D61: =SUM(D59-D60) -> 8585363.745 | F61: Amortization | H61: 25
B63: Loan Terms Yrs 1-3 IO | C63: 0.065 | D63: =D61*C63 -> 558048.6434 | F63: Monthly Payment | H63: =PMT(H60/12,H61*12,-H59) -> 57968.99083
B64: Stabilized Mortgage Exp | D64: =H64 -> 695627.89 | F64: Total Payment | H64: =H63*12 -> 695627.89
